{"text_format":"1","workbook":"xlsx","n_sheets":1,"sheets":["Sheet1"],"not_rendered":{"charts":0,"images":0,"macros":1,"external_links":0,"defined_names":0,"comments":0,"pivot_tables":0},"unopened":[],"bounds":{"document_bytes":16777216,"sheet_cells":100000,"rows_first":2000,"rows_last":500,"rows_between":2000,"halvings":0,"cell_chars":16384,"cell_head_chars":4096},"cells_cut":0,"cells_raw":0,"read":"whole","date_system":"1900"}

{"sheet":"Sheet1","index":0,"n_rows":32,"n_cols":12,"rows_kept":32,"cut":false,"hidden":false,"merged":[]}
[null,null,null,{"$f":"showformula(D2)","v":"=JoinText(A2:C2,\" \",\".\",\"!\",1,0)"}]
["I","love","Excel",{"$f":"JoinText(A2:C2,\" \",\".\",\"!\",1,0)","v":"I love Excel!"},null,"I","You",null,null,"We","We","Excel"]
["You","love","Excel",{"$f":"JoinText(A3:C3,\" \",\".\",\"!\",1,0)","v":"You love Excel!"},null,"love","love",null,null,null,"love","loves"]
[null,null,null,"",null,"Excel","Excel",null,null,"Excel","Excel","us"]
["We",null,"Excel","We Excel!"]
["We","love","Excel","We love Excel!",null,null,{"$f":"showformula(H6)","v":"=JoinText(F2:L4,\" \",\". \",\"!\",1,0)"},{"$f":"JoinText(F2:L4,\" \",\". \",\"!\",1,0)","v":"I love Excel. You love Excel. We Excel. We love Excel. Excel loves us!"}]
["Excel","loves","us","Excel loves us!",null,null,{"$f":"showformula(H7)","v":"=JoinText(F2:L4,\" \",\". \",,1,0)"},{"$f":"JoinText(F2:L4,\" \",\". \",,1,0)","v":"I love Excel. You love Excel. We Excel. We love Excel. Excel loves us"}]
[{"$f":"JoinText(A2:A7,\", \", \".\",\"!\",1,0)","v":"I, You, We, We, Excel!"},{"$f":"JoinText(B2:B7,\", \", \".\",\"!\",1,0)","v":"love, love, love, loves!"},"Excel, Excel, Excel, Excel, us!",null,null,null,{"$f":"showformula(H8)","v":"=JoinText(F2:L4,\" \",\". \",,0,0)"},{"$f":"JoinText(F2:L4,\" \",\". \",,0,0)","v":"I love Excel. You love Excel.   .   . We  Excel. We love Excel. Excel loves us"}]
[{"$f":"showformula(A8)","v":"=JoinText(A2:A7,\", \", \".\",\"!\",1,0)"}]
[]
["2D Input:",null,null,null,null,"Title","FirstName","MiddleName","LastName"]
[{"$f":"showformula(B12)","v":"=JoinText(A2:C7,\" \",\". \",\"!\",1,1)"},{"$f":"JoinText(A2:C7,\" \",\". \",\"!\",1,1)","v":"I love Excel. You love Excel. We Excel. We love Excel. Excel loves us!"},null,null,null,"Mr","Jeffrey","Spenser","Weir"]
[{"$f":"showformula(B13)","v":"=JoinText(A2:C7,\" \",\". \",\"!\",0,1)"},{"$f":"JoinText(A2:C7,\" \",\". \",\"!\",0,1)","v":"I love Excel. You love Excel.   . We  Excel. We love Excel. Excel loves us!"},null,null,null,"Ms","Ines",null,"Bergua"]
[{"$f":"showformula(B14)","v":"=JoinText(A2:C7,\", \",\". \",\"!\",1,0)"},{"$f":"JoinText(A2:C7,\", \",\". \",\"!\",1,0)","v":"I, You, We, We, Excel. love, love, love, loves. Excel, Excel, Excel, Excel, us!"}]
[{"$f":"showformula(B14)","v":"=JoinText(A2:C7,\", \",\". \",\"!\",1,0)"},{"$f":"JoinText(A2:C7,\", \",\". \",\"!\",0,0)","v":"I, You, , We, We, Excel. love, love, , , love, loves. Excel, Excel, , Excel, Excel, us!"},null,null,null,null,{"$f":"showformula(H15)","v":"=JoinText(F12:I13,\" \",\", \",,1,1)"},{"$f":"JoinText(F12:I13,\" \",\", \",,1,1)","v":"Mr Jeffrey Spenser Weir, Ms Ines Bergua"}]
[null,null,null,null,null,null,{"$f":"showformula(H16)","v":"=JoinText(F12:I13,\" \",\", \",\".\",1,1)"},{"$f":"JoinText(F12:I13,\" \",\", \",\".\",1,1)","v":"Mr Jeffrey Spenser Weir, Ms Ines Bergua."}]
[]
["Excel's","Everybody"]
["String","Complains"]
["Concatenation","About"]
["Is","It"]
[]
["Like","But"]
["The","Noone"]
[]
["Weather","Does"]
[null,"Anything"]
[null,"About"]
[null,"It"]
[]
[{"$f":"showformula(A32)","v":"=JoinText(A18:B29,\" \",\" - \",\"!\",1,0)"}]
[{"$f":"JoinText(A18:B29,\" \",\" - \",\"!\",1,0)","v":"Excel's String Concatenation Is Like The Weather - Everybody Complains About It But Noone Does Anything About It!"}]